[Event "*** SCC Grand Prix: Titled Tuesday Blitz"]
[Site "Chess.com"]
[Date "2020.09.08"]
[Round "6"]
[White "vovachesss"]
[Black "Orest_Vovk"]
[Result "1/2-1/2"]
[WhiteElo "2666"]
[BlackElo "2493"]
[TimeControl "180+1"]
[EndTime "11:08:07 PDT"]
[Termination "Game drawn - insufficient material"]

1. Nf3 {[%clk 0:02:59.8]} 1... Nf6 {[%clk 0:02:55.8]} 2. b3 {[%clk 0:02:59.4]}
2... h6 {[%clk 0:02:55.5]} 3. Bb2 {[%clk 0:02:58.9]} 3... Nh7 {[%clk 0:02:55.6]}
4. e4 {[%clk 0:02:57.8]} 4... Ng5 {[%clk 0:02:54.1]} 5. Nc3 {[%clk 0:02:56.6]}
5... d6 {[%clk 0:02:49.8]} 6. d4 {[%clk 0:02:55.7]} 6... Nc6 {[%clk 0:02:46.5]}
7. Be2 {[%clk 0:02:54.3]} 7... Nxf3+ {[%clk 0:02:45.3]} 8. Bxf3 {[%clk
0:02:54.4]} 8... e5 {[%clk 0:02:45.3]} 9. dxe5 {[%clk 0:02:54.3]} 9... dxe5
{[%clk 0:02:40.7]} 10. Nd5 {[%clk 0:02:54.1]} 10... Bd6 {[%clk 0:02:33.5]} 11.
Bg4 {[%clk 0:02:20.9]} 11... Bxg4 {[%clk 0:02:25.6]} 12. Qxg4 {[%clk 0:02:20.5]}
12... Qg5 {[%clk 0:02:25.9]} 13. Qxg5 {[%clk 0:02:02.8]} 13... hxg5 {[%clk
0:02:26.8]} 14. O-O-O {[%clk 0:02:03.3]} 14... O-O-O {[%clk 0:02:20.3]} 15. h3
{[%clk 0:02:00.1]} 15... f6 {[%clk 0:02:18.8]} 16. a3 {[%clk 0:01:57.3]} 16...
Bc5 {[%clk 0:02:08.7]} 17. f3 {[%clk 0:01:53.8]} 17... Bd4 {[%clk 0:02:07]} 18.
c3 {[%clk 0:01:48.5]} 18... Bc5 {[%clk 0:01:57.2]} 19. Kc2 {[%clk 0:01:47.8]}
19... Ne7 {[%clk 0:01:52.9]} 20. Nxe7+ {[%clk 0:01:36.2]} 20... Bxe7 {[%clk
0:01:52]} 21. c4 {[%clk 0:01:30.1]} 21... Rxd1 {[%clk 0:01:49.8]} 22. Rxd1
{[%clk 0:01:29.8]} 22... Rd8 {[%clk 0:01:50.3]} 23. Rxd8+ {[%clk 0:01:27.9]}
23... Kxd8 {[%clk 0:01:51.2]} 24. b4 {[%clk 0:01:27.8]} 24... Kd7 {[%clk
0:01:46.3]} 25. Kb3 {[%clk 0:01:26.7]} 25... c6 {[%clk 0:01:40.3]} 26. a4 {[%clk
0:01:20.6]} 26... a6 {[%clk 0:01:36.9]} 27. b5 {[%clk 0:01:20.8]} 27... axb5
{[%clk 0:01:30]} 28. cxb5 {[%clk 0:01:19.6]} 28... cxb5 {[%clk 0:01:29.1]} 29.
axb5 {[%clk 0:01:19.6]} 29... Bc5 {[%clk 0:01:23.8]} 30. Kc4 {[%clk 0:01:15.9]}
30... Kd6 {[%clk 0:01:19.7]} 31. Bc3 {[%clk 0:01:09.7]} 31... b6 {[%clk
0:01:19.2]} 32. Be1 {[%clk 0:00:58.6]} 32... Ke6 {[%clk 0:01:13.2]} 33. Kd3
{[%clk 0:00:49.2]} 33... Kd6 {[%clk 0:01:11.3]} 34. g3 {[%clk 0:00:46.9]} 34...
Ke6 {[%clk 0:01:10.2]} 35. Ke2 {[%clk 0:00:28.4]} 35... Kd6 {[%clk 0:01:08.6]}
36. Kd3 {[%clk 0:00:18]} 36... Ke6 {[%clk 0:01:08.1]} 37. Bd2 {[%clk 0:00:14.7]}
37... Kd6 {[%clk 0:01:07.6]} 38. f4 {[%clk 0:00:15.1]} 38... gxf4 {[%clk
0:01:04.9]} 39. gxf4 {[%clk 0:00:15]} 39... exf4 {[%clk 0:01:01.4]} 40. Bxf4+
{[%clk 0:00:15.9]} 40... Ke6 {[%clk 0:01:01.3]} 41. Kc4 {[%clk 0:00:15.8]} 41...
g6 {[%clk 0:01:00.6]} 42. Bg3 {[%clk 0:00:14.8]} 42... Bg1 {[%clk 0:00:53.5]}
43. Kd3 {[%clk 0:00:13.2]} 43... Bc5 {[%clk 0:00:51.7]} 44. Ke2 {[%clk
0:00:13.4]} 44... Bd4 {[%clk 0:00:44.3]} 45. Kf3 {[%clk 0:00:13.3]} 45... Bc5
{[%clk 0:00:42.3]} 46. Bc7 {[%clk 0:00:11.5]} 46... Bg1 {[%clk 0:00:39.3]} 47.
Kg4 {[%clk 0:00:11.3]} 47... Be3 {[%clk 0:00:34.7]} 48. h4 {[%clk 0:00:10.8]}
48... Bc5 {[%clk 0:00:31.1]} 49. h5 {[%clk 0:00:10.3]} 49... gxh5+ {[%clk
0:00:31.2]} 50. Kxh5 {[%clk 0:00:11.2]} 50... f5 {[%clk 0:00:30.8]} 51. exf5+
{[%clk 0:00:04.9]} 51... Kxf5 {[%clk 0:00:30.8]} 52. Kh6 {[%clk 0:00:05.3]}
52... Ke6 {[%clk 0:00:30.5]} 53. Kg7 {[%clk 0:00:05.2]} 53... Kd5 {[%clk
0:00:30.6]} 54. Kf7 {[%clk 0:00:04.4]} 54... Kc4 {[%clk 0:00:30.7]} 55. Ke6
{[%clk 0:00:04.4]} 55... Kxb5 {[%clk 0:00:30.8]} 56. Bxb6 {[%clk 0:00:05.3]}
1/2-1/2

[Event "*** SCC Grand Prix: Titled Tuesday Blitz"]
[Site "Chess.com"]
[Date "2020.09.08"]
[Round "6"]
[White "MathiasWomacka"]
[Black "poppy73"]
[Result "1-0"]
[WhiteElo "2413"]
[BlackElo "2248"]
[TimeControl "180+1"]
[EndTime "11:08:07 PDT"]
[Termination "MathiasWomacka won on time"]

1. e4 {[%clk 0:02:48.3]} 1... c5 {[%clk 0:02:58.3]} 2. Nf3 {[%clk 0:02:47.3]}
2... d6 {[%clk 0:02:58.7]} 3. d4 {[%clk 0:02:47.2]} 3... cxd4 {[%clk 0:02:59.6]}
4. Nxd4 {[%clk 0:02:47.9]} 4... Nf6 {[%clk 0:03:00.1]} 5. Nc3 {[%clk 0:02:48.4]}
5... a6 {[%clk 0:03:00.7]} 6. Be2 {[%clk 0:02:48.7]} 6... e5 {[%clk 0:03:00]} 7.
Nb3 {[%clk 0:02:47.6]} 7... Be6 {[%clk 0:02:59.4]} 8. f4 {[%clk 0:02:46.2]} 8...
Qc7 {[%clk 0:02:49.3]} 9. g4 {[%clk 0:02:45]} 9... exf4 {[%clk 0:02:40.4]} 10.
g5 {[%clk 0:02:44.6]} 10... Nfd7 {[%clk 0:02:38.7]} 11. Bxf4 {[%clk 0:02:43.6]}
11... Nc6 {[%clk 0:02:37.5]} 12. Qd2 {[%clk 0:02:43.7]} 12... Be7 {[%clk
0:02:34.7]} 13. O-O-O {[%clk 0:02:42.9]} 13... Nce5 {[%clk 0:02:33.3]} 14. Nd4
{[%clk 0:02:38.7]} 14... O-O-O {[%clk 0:02:26.5]} 15. h4 {[%clk 0:02:35.9]}
15... Kb8 {[%clk 0:02:21.5]} 16. Kb1 {[%clk 0:02:33.9]} 16... Rc8 {[%clk
0:02:14.8]} 17. Nf5 {[%clk 0:02:29.5]} 17... Bxf5 {[%clk 0:01:57.9]} 18. exf5
{[%clk 0:02:30.4]} 18... Nb6 {[%clk 0:01:57.5]} 19. Qd4 {[%clk 0:02:27]} 19...
f6 {[%clk 0:01:43.5]} 20. Be3 {[%clk 0:02:24.1]} 20... Qc5 {[%clk 0:01:27.2]}
21. Qe4 {[%clk 0:02:12.3]} 21... Qc7 {[%clk 0:01:11.8]} 22. Qb4 {[%clk
0:02:07.1]} 22... Ned7 {[%clk 0:00:58.1]} 23. Qb3 {[%clk 0:01:57.5]} 23... Nc5
{[%clk 0:00:54.2]} 24. Qa3 {[%clk 0:01:40.5]} 24... Rhe8 {[%clk 0:00:37.9]} 25.
Rd2 {[%clk 0:01:30.4]} 25... Bf8 {[%clk 0:00:36.5]} 26. Bf4 {[%clk 0:01:30.1]}
26... Nbd7 {[%clk 0:00:25.8]} 27. Nd5 {[%clk 0:01:26.3]} 27... Qd8 {[%clk
0:00:19.6]} 28. Rhd1 {[%clk 0:01:13.9]} 28... Ne5 {[%clk 0:00:18.8]} 29. gxf6
{[%clk 0:01:06.6]} 29... gxf6 {[%clk 0:00:18.5]} 30. Qb4 {[%clk 0:01:01.7]}
30... Nc6 {[%clk 0:00:12.8]} 31. Qa3 {[%clk 0:00:52.5]} 31... Ne5 {[%clk
0:00:12.6]} 32. Bh5 {[%clk 0:00:51.1]} 32... Ne4 {[%clk 0:00:10.5]} 33. Bxe8
{[%clk 0:00:48.9]} 33... Nxd2+ {[%clk 0:00:10.1]} 34. Bxd2 {[%clk 0:00:45.5]}
34... Qxe8 {[%clk 0:00:10.3]} 35. Nxf6 {[%clk 0:00:45.6]} 35... Qf7 {[%clk
0:00:10.2]} 36. Ne4 {[%clk 0:00:44.8]} 36... d5 {[%clk 0:00:09.5]} 37. Nd6
{[%clk 0:00:42.7]} 37... Qf6 {[%clk 0:00:07.4]} 38. Bb4 {[%clk 0:00:42.3]} 38...
Bxd6 {[%clk 0:00:03.6]} 39. Bxd6+ {[%clk 0:00:42]} 39... Ka8 {[%clk 0:00:04.1]}
40. Rxd5 {[%clk 0:00:40.3]} 40... Qxf5 {[%clk 0:00:03.6]} 41. Qe3 {[%clk
0:00:33.2]} 41... Qf1+ {[%clk 0:00:03]} 42. Qc1 {[%clk 0:00:32.5]} 42... Qxc1+
{[%clk 0:00:03.1]} 43. Kxc1 {[%clk 0:00:33.4]} 43... Nc4 {[%clk 0:00:03.4]} 44.
Bf4 {[%clk 0:00:32.6]} 44... Rf8 {[%clk 0:00:02.4]} 45. Rd4 {[%clk 0:00:30.6]}
45... Nb6 {[%clk 0:00:01.1]} 46. b3 {[%clk 0:00:29.4]} 46... Nc8 {[%clk
0:00:01.2]} 47. Bg5 {[%clk 0:00:27.8]} 1-0

[Event "*** SCC Grand Prix: Titled Tuesday Blitz"]
[Site "Chess.com"]
[Date "2020.09.08"]
[Round "6"]
[White "rasmussvane"]
[Black "Schandenfreude"]
[Result "1-0"]
[WhiteElo "2869"]
[BlackElo "2520"]
[TimeControl "180+1"]
[EndTime "11:08:09 PDT"]
[Termination "rasmussvane won on time"]

1. Nf3 {[%clk 0:03:00.9]} 1... Nf6 {[%clk 0:02:54.4]} 2. g3 {[%clk 0:03:00.8]}
2... b6 {[%clk 0:02:53.1]} 3. Bg2 {[%clk 0:03:01.1]} 3... Bb7 {[%clk 0:02:53.2]}
4. O-O {[%clk 0:03:01.5]} 4... e6 {[%clk 0:02:53.2]} 5. d4 {[%clk 0:03:01.5]}
5... c5 {[%clk 0:02:49.7]} 6. c4 {[%clk 0:02:59.8]} 6... cxd4 {[%clk 0:02:49]}
7. Qxd4 {[%clk 0:03:00.7]} 7... Be7 {[%clk 0:02:48]} 8. Nc3 {[%clk 0:03:00.3]}
8... O-O {[%clk 0:02:45.5]} 9. Rd1 {[%clk 0:03:00.5]} 9... d6 {[%clk 0:02:42.3]}
10. Bg5 {[%clk 0:03:00.1]} 10... Nbd7 {[%clk 0:02:30.4]} 11. Nb5 {[%clk
0:02:59.8]} 11... d5 {[%clk 0:02:21.5]} 12. cxd5 {[%clk 0:03:00.7]} 12... Bxd5
{[%clk 0:02:10.8]} 13. Nc3 {[%clk 0:02:59.9]} 13... Bb7 {[%clk 0:02:06.1]} 14.
Rac1 {[%clk 0:02:20.8]} 14... a6 {[%clk 0:01:58.2]} 15. Ne5 {[%clk 0:02:13.7]}
15... Bxg2 {[%clk 0:01:52.8]} 16. Nxd7 {[%clk 0:02:12.8]} 16... Nxd7 {[%clk
0:01:44.9]} 17. Bxe7 {[%clk 0:02:11]} 17... Qxe7 {[%clk 0:01:43.2]} 18. Qxd7
{[%clk 0:02:11.2]} 18... Qxd7 {[%clk 0:01:37.4]} 19. Rxd7 {[%clk 0:02:12.1]}
19... Bc6 {[%clk 0:01:30]} 20. Rc7 {[%clk 0:01:49.9]} 20... Rac8 {[%clk
0:01:18.8]} 21. Rxc8 {[%clk 0:01:50.1]} 21... Rxc8 {[%clk 0:01:18.3]} 22. Na4
{[%clk 0:01:46.1]} 22... b5 {[%clk 0:01:13.2]} 23. Nc5 {[%clk 0:01:16.2]} 23...
Bd5 {[%clk 0:00:56.1]} 24. a3 {[%clk 0:01:14.8]} 24... a5 {[%clk 0:00:48.3]} 25.
f3 {[%clk 0:00:54.6]} 25... Bc4 {[%clk 0:00:31.9]} 26. Nb7 {[%clk 0:00:53.7]}
26... Ra8 {[%clk 0:00:24.5]} 27. Kf2 {[%clk 0:00:52.5]} 27... g6 {[%clk
0:00:23.5]} 28. Nd6 {[%clk 0:00:52.7]} 28... Rb8 {[%clk 0:00:18.8]} 29. Ke3
{[%clk 0:00:50.7]} 29... Rb6 {[%clk 0:00:17.3]} 30. Nxc4 {[%clk 0:00:38.4]}
30... bxc4 {[%clk 0:00:17.8]} 31. Rc2 {[%clk 0:00:36.8]} 31... c3 {[%clk
0:00:13.3]} 32. bxc3 {[%clk 0:00:34.8]} 32... Rb3 {[%clk 0:00:13.3]} 33. Kd4
{[%clk 0:00:30.4]} 33... Rxa3 {[%clk 0:00:13.4]} 34. c4 {[%clk 0:00:30.9]} 34...
Kf8 {[%clk 0:00:13.4]} 35. Kc5 {[%clk 0:00:27.2]} 35... a4 {[%clk 0:00:09.4]}
36. Kb5 {[%clk 0:00:16.9]} 36... Ke7 {[%clk 0:00:08.2]} 37. c5 {[%clk
0:00:17.3]} 37... Kd7 {[%clk 0:00:07.9]} 38. Rd2+ {[%clk 0:00:11.5]} 38... Kc7
{[%clk 0:00:08.1]} 39. Rd6 {[%clk 0:00:08.8]} 39... Ra1 {[%clk 0:00:07.1]} 40.
Ra6 {[%clk 0:00:08.6]} 40... a3 {[%clk 0:00:06.9]} 41. Ra7+ {[%clk 0:00:09.1]}
41... Kb8 {[%clk 0:00:07]} 42. Ra4 {[%clk 0:00:06.5]} 42... a2 {[%clk
0:00:05.5]} 43. Kc6 {[%clk 0:00:06.4]} 43... h5 {[%clk 0:00:04.1]} 44. h4 {[%clk
0:00:06.2]} 44... f6 {[%clk 0:00:04]} 45. e4 {[%clk 0:00:06.6]} 45... f5 {[%clk
0:00:03.3]} 46. e5 {[%clk 0:00:06.5]} 1-0

[Event "*** SCC Grand Prix: Titled Tuesday Blitz"]
[Site "Chess.com"]
[Date "2020.09.08"]
[Round "6"]
[White "aljado"]
[Black "ailime26"]
[Result "0-1"]
[WhiteElo "2087"]
[BlackElo "1899"]
[TimeControl "180+1"]
[EndTime "11:08:09 PDT"]
[Termination "ailime26 won by resignation"]

1. e4 {[%clk 0:03:00.9]} 1... c5 {[%clk 0:02:58.9]} 2. Nf3 {[%clk 0:02:59.8]}
2... Nc6 {[%clk 0:02:58]} 3. c3 {[%clk 0:02:59.5]} 3... g6 {[%clk 0:02:57]} 4.
d4 {[%clk 0:02:58.1]} 4... cxd4 {[%clk 0:02:57]} 5. cxd4 {[%clk 0:02:57.1]} 5...
Bg7 {[%clk 0:02:56.9]} 6. Nc3 {[%clk 0:02:57.3]} 6... e6 {[%clk 0:02:52.3]} 7.
Be2 {[%clk 0:02:54.2]} 7... Nge7 {[%clk 0:02:52.2]} 8. O-O {[%clk 0:02:53]} 8...
O-O {[%clk 0:02:49.3]} 9. Bg5 {[%clk 0:02:48.5]} 9... a6 {[%clk 0:02:31.3]} 10.
d5 {[%clk 0:02:44.2]} 10... exd5 {[%clk 0:02:21.2]} 11. Nxd5 {[%clk 0:02:37.6]}
11... f6 {[%clk 0:02:14.6]} 12. Bh4 {[%clk 0:02:35.4]} 12... b5 {[%clk
0:02:06.5]} 13. Rc1 {[%clk 0:02:28.7]} 13... Bb7 {[%clk 0:02:06.2]} 14. Re1
{[%clk 0:02:21]} 14... Ne5 {[%clk 0:02:01.5]} 15. Nxe5 {[%clk 0:02:17.5]} 15...
Bxd5 {[%clk 0:01:57.7]} 16. Nxg6 {[%clk 0:01:53.1]} 16... Nxg6 {[%clk
0:01:52.4]} 17. Qxd5+ {[%clk 0:01:51.7]} 17... Kh8 {[%clk 0:01:51.7]} 18. Bg3
{[%clk 0:01:49.5]} 18... Re8 {[%clk 0:01:49.9]} 19. Bf3 {[%clk 0:01:44.4]} 19...
Qe7 {[%clk 0:01:48.7]} 20. Rc7 {[%clk 0:01:31.8]} 20... Rad8 {[%clk 0:01:43.8]}
21. Bg4 {[%clk 0:01:23.4]} 21... Qb4 {[%clk 0:01:38.4]} 22. f3 {[%clk
0:01:09.8]} 22... Ne5 {[%clk 0:01:31.5]} 23. a3 {[%clk 0:01:06.6]} 23... Qxb2
{[%clk 0:01:28.2]} 24. Bxd7 {[%clk 0:01:02.7]} 24... Nxd7 {[%clk 0:00:39.8]} 25.
Rxd7 {[%clk 0:01:00.7]} 25... Rxd7 {[%clk 0:00:36.3]} 26. Qxd7 {[%clk
0:00:59.8]} 26... Rf8 {[%clk 0:00:35.1]} 27. Rd1 {[%clk 0:00:50.3]} 27... Qxa3
{[%clk 0:00:28.9]} 28. Rd3 {[%clk 0:00:38.8]} 28... Qc5+ {[%clk 0:00:23]} 29.
Bf2 {[%clk 0:00:37.1]} 29... Qc1+ {[%clk 0:00:22.3]} 30. Rd1 {[%clk 0:00:36.7]}
30... Qc3 {[%clk 0:00:22.4]} 31. Bd4 {[%clk 0:00:29.4]} 31... Qc2 {[%clk
0:00:13.5]} 32. Ba1 {[%clk 0:00:27.6]} 32... Qc5+ {[%clk 0:00:11.9]} 33. Bd4
{[%clk 0:00:24.1]} 33... Qc2 {[%clk 0:00:12]} 34. Be3 {[%clk 0:00:21.5]} 34...
b4 {[%clk 0:00:12]} 35. Kf1 {[%clk 0:00:12.3]} 35... b3 {[%clk 0:00:09.4]} 36.
Rc1 {[%clk 0:00:12.2]} 36... Qa2 {[%clk 0:00:06.6]} 37. Bd4 {[%clk 0:00:08.9]}
37... b2 {[%clk 0:00:06.3]} 38. Bxb2 {[%clk 0:00:07.4]} 38... Qxb2 {[%clk
0:00:07.2]} 39. Rc8 {[%clk 0:00:06.4]} 39... Qb5+ {[%clk 0:00:06.7]} 40. Qxb5
{[%clk 0:00:04.2]} 40... axb5 {[%clk 0:00:07.6]} 41. Rxf8+ {[%clk 0:00:04.4]}
41... Bxf8 {[%clk 0:00:08.5]} 0-1

[Event "*** SCC Grand Prix: Titled Tuesday Blitz"]
[Site "Chess.com"]
[Date "2020.09.08"]
[Round "6"]
[White "Makswolf200817"]
[Black "queen_iryna"]
[Result "1-0"]
[WhiteElo "2421"]
[BlackElo "2282"]
[TimeControl "180+1"]
[EndTime "11:08:10 PDT"]
[Termination "Makswolf200817 won by checkmate"]

1. d4 {[%clk 0:02:53.7]} 1... d5 {[%clk 0:02:59.8]} 2. c4 {[%clk 0:02:53]} 2...
c6 {[%clk 0:02:59.5]} 3. cxd5 {[%clk 0:02:45]} 3... cxd5 {[%clk 0:03:00.4]} 4.
Bf4 {[%clk 0:02:45.2]} 4... Nf6 {[%clk 0:02:59.4]} 5. Nc3 {[%clk 0:02:44.9]}
5... a6 {[%clk 0:02:59]} 6. Nf3 {[%clk 0:02:43.7]} 6... Nc6 {[%clk 0:02:59]} 7.
e3 {[%clk 0:02:43.5]} 7... e6 {[%clk 0:02:59.2]} 8. Bd3 {[%clk 0:02:43.2]} 8...
Be7 {[%clk 0:02:59]} 9. O-O {[%clk 0:02:42.8]} 9... O-O {[%clk 0:02:59.2]} 10.
a3 {[%clk 0:02:42.6]} 10... Bd7 {[%clk 0:02:58.5]} 11. Rc1 {[%clk 0:02:42.2]}
11... Rc8 {[%clk 0:02:57.4]} 12. b4 {[%clk 0:02:41.9]} 12... a5 {[%clk
0:02:29.5]} 13. b5 {[%clk 0:02:36.1]} 13... Na7 {[%clk 0:02:29.1]} 14. a4 {[%clk
0:02:30.6]} 14... Bb4 {[%clk 0:02:19.3]} 15. Qb3 {[%clk 0:02:24.1]} 15... Qe7
{[%clk 0:02:00.3]} 16. h3 {[%clk 0:02:05.4]} 16... Rfd8 {[%clk 0:01:48.9]} 17.
b6 {[%clk 0:01:55.6]} 17... Nc6 {[%clk 0:01:46.5]} 18. Nb5 {[%clk 0:01:55]}
18... Ne4 {[%clk 0:01:37.7]} 19. Bxe4 {[%clk 0:01:42.3]} 19... dxe4 {[%clk
0:01:37.5]} 20. Ne5 {[%clk 0:01:43]} 20... Nxe5 {[%clk 0:01:35.1]} 21. Bxe5
{[%clk 0:01:43.8]} 21... Bxb5 {[%clk 0:01:35.1]} 22. axb5 {[%clk 0:01:38.6]}
22... Bd6 {[%clk 0:01:26.7]} 23. Qa4 {[%clk 0:01:08.9]} 23... Bxe5 {[%clk
0:01:19.1]} 24. dxe5 {[%clk 0:01:09.6]} 24... Rc5 {[%clk 0:01:04.3]} 25. Qxe4
{[%clk 0:00:53.9]} 25... Rdd5 {[%clk 0:00:53.5]} 26. Qa4 {[%clk 0:00:30.4]}
26... g6 {[%clk 0:00:47.2]} 27. Qxa5 {[%clk 0:00:28.9]} 27... Rxe5 {[%clk
0:00:40.2]} 28. Rfd1 {[%clk 0:00:20.8]} 28... Kg7 {[%clk 0:00:36.1]} 29. Qa7
{[%clk 0:00:19.6]} 29... Rxc1 {[%clk 0:00:34.7]} 30. Rxc1 {[%clk 0:00:20.4]}
30... Rxb5 {[%clk 0:00:32.7]} 31. Rc7 {[%clk 0:00:19.8]} 31... Rb1+ {[%clk
0:00:32.6]} 32. Kh2 {[%clk 0:00:18.6]} 32... Qd6+ {[%clk 0:00:32.3]} 33. g3
{[%clk 0:00:18.9]} 33... Qxb6 {[%clk 0:00:32.2]} 34. Qb8 {[%clk 0:00:18.9]}
34... Qb2 {[%clk 0:00:23.5]} 35. Kg2 {[%clk 0:00:17.2]} 35... b5 {[%clk
0:00:13.2]} 36. Qe8 {[%clk 0:00:14.8]} 36... Qf6 {[%clk 0:00:11.4]} 37. Rc2
{[%clk 0:00:14.1]} 37... b4 {[%clk 0:00:09.7]} 38. Rd2 {[%clk 0:00:11.4]} 38...
b3 {[%clk 0:00:08.3]} 39. Rd7 {[%clk 0:00:11.3]} 39... b2 {[%clk 0:00:06.7]} 40.
Rb7 {[%clk 0:00:11.1]} 40... Rc1 {[%clk 0:00:05.3]} 41. Qb5 {[%clk 0:00:09.5]}
41... b1=Q {[%clk 0:00:04.3]} 42. Qxb1 {[%clk 0:00:10.2]} 42... Rxb1 {[%clk
0:00:05.1]} 43. Rxb1 {[%clk 0:00:10.6]} 43... Qe5 {[%clk 0:00:05.4]} 44. Rf1
{[%clk 0:00:11.3]} 44... Qe4+ {[%clk 0:00:05.5]} 45. Kg1 {[%clk 0:00:12.2]}
45... Qf3 {[%clk 0:00:05.6]} 46. Ra1 {[%clk 0:00:12.4]} 46... h5 {[%clk
0:00:05.6]} 47. Ra4 {[%clk 0:00:12.4]} 47... Kf6 {[%clk 0:00:05.1]} 48. Rf4+
{[%clk 0:00:12.1]} 48... Qxf4 {[%clk 0:00:05]} 49. exf4 {[%clk 0:00:13]} 49...
Kf5 {[%clk 0:00:05.3]} 50. Kg2 {[%clk 0:00:13.2]} 50... h4 {[%clk 0:00:05.5]}
51. Kf3 {[%clk 0:00:12.8]} 51... hxg3 {[%clk 0:00:05.4]} 52. fxg3 {[%clk
0:00:13.7]} 52... f6 {[%clk 0:00:03.9]} 53. g4# {[%clk 0:00:14.6]} 1-0

[Event "*** SCC Grand Prix: Titled Tuesday Blitz"]
[Site "Chess.com"]
[Date "2020.09.08"]
[Round "6"]
[White "GadimbayliA"]
[Black "LyonBeast"]
[Result "1-0"]
[WhiteElo "2908"]
[BlackElo "3012"]
[TimeControl "180+1"]
[EndTime "11:08:11 PDT"]
[Termination "GadimbayliA won on time"]

1. e4 {[%clk 0:03:00.9]} 1... c5 {[%clk 0:02:58.7]} 2. Nf3 {[%clk 0:03:01.1]}
2... Nc6 {[%clk 0:02:58.9]} 3. b4 {[%clk 0:03:00.8]} 3... d6 {[%clk 0:02:51.5]}
4. b5 {[%clk 0:02:59.4]} 4... Ne5 {[%clk 0:02:51.1]} 5. Nxe5 {[%clk 0:02:51.8]}
5... dxe5 {[%clk 0:02:52]} 6. Bb2 {[%clk 0:02:52.5]} 6... f6 {[%clk 0:02:51.1]}
7. Bc4 {[%clk 0:02:52.1]} 7... Nh6 {[%clk 0:02:45.3]} 8. Nc3 {[%clk 0:02:50.6]}
8... Bg4 {[%clk 0:02:43.6]} 9. f3 {[%clk 0:02:41.4]} 9... Bd7 {[%clk 0:02:43.4]}
10. O-O {[%clk 0:02:38.9]} 10... e6 {[%clk 0:02:43.4]} 11. Kh1 {[%clk
0:02:35.6]} 11... Nf7 {[%clk 0:02:36.3]} 12. a4 {[%clk 0:02:34.5]} 12... Bd6
{[%clk 0:02:33.8]} 13. d3 {[%clk 0:02:29.6]} 13... O-O {[%clk 0:02:32.7]} 14.
Ne2 {[%clk 0:02:30]} 14... Qe7 {[%clk 0:02:25.1]} 15. f4 {[%clk 0:02:29.2]}
15... exf4 {[%clk 0:02:25]} 16. Nxf4 {[%clk 0:02:30.1]} 16... Be5 {[%clk
0:02:23.1]} 17. Bxe5 {[%clk 0:02:18.5]} 17... Nxe5 {[%clk 0:02:24]} 18. Ba2
{[%clk 0:02:14]} 18... Rad8 {[%clk 0:01:58.2]} 19. Qe1 {[%clk 0:02:12]} 19... g5
{[%clk 0:01:55]} 20. Nh5 {[%clk 0:02:09]} 20... Be8 {[%clk 0:01:54.7]} 21. Ng3
{[%clk 0:02:04.9]} 21... Kh8 {[%clk 0:01:50.1]} 22. Qe2 {[%clk 0:01:58.4]} 22...
Bg6 {[%clk 0:01:45.9]} 23. Rf2 {[%clk 0:01:55.2]} 23... Kg7 {[%clk 0:01:27.9]}
24. Raf1 {[%clk 0:01:54.2]} 24... b6 {[%clk 0:01:26.5]} 25. Nh5+ {[%clk
0:01:48.5]} 25... Bxh5 {[%clk 0:01:25.6]} 26. Qxh5 {[%clk 0:01:49.4]} 26... Qe8
{[%clk 0:01:22.9]} 27. Qh3 {[%clk 0:01:46.9]} 27... Rd6 {[%clk 0:01:22.3]} 28.
Qg3 {[%clk 0:01:46.7]} 28... Qe7 {[%clk 0:00:54.8]} 29. Rxf6 {[%clk 0:01:31.6]}
29... Rxf6 {[%clk 0:00:55.7]} 30. Qxe5 {[%clk 0:01:30.4]} 30... Kg6 {[%clk
0:00:48.8]} 31. Re1 {[%clk 0:01:10.3]} 31... Rd8 {[%clk 0:00:48.5]} 32. Bc4
{[%clk 0:01:08.6]} 32... h5 {[%clk 0:00:41.9]} 33. c3 {[%clk 0:01:05.1]} 33...
Rc8 {[%clk 0:00:34.7]} 34. Qg3 {[%clk 0:01:02.9]} 34... h4 {[%clk 0:00:34.3]}
35. Qe5 {[%clk 0:01:00]} 35... Qf7 {[%clk 0:00:24.1]} 36. Kg1 {[%clk 0:00:54.7]}
36... g4 {[%clk 0:00:17.4]} 37. d4 {[%clk 0:00:45]} 37... cxd4 {[%clk
0:00:17.3]} 38. Qxd4 {[%clk 0:00:42.6]} 38... Kg7 {[%clk 0:00:14.2]} 39. Bd3
{[%clk 0:00:33.2]} 39... Rc5 {[%clk 0:00:14.1]} 40. e5 {[%clk 0:00:29.4]} 40...
Rf4 {[%clk 0:00:14]} 41. Qd8 {[%clk 0:00:28.4]} 41... Rd5 {[%clk 0:00:05.7]} 42.
Qg5+ {[%clk 0:00:25.1]} 42... Kf8 {[%clk 0:00:06.3]} 43. Bg6 {[%clk 0:00:16.2]}
43... Rf5 {[%clk 0:00:02.2]} 44. Bxf5 {[%clk 0:00:06.9]} 44... Qxf5 {[%clk
0:00:03.1]} 45. Rf1 {[%clk 0:00:04.8]} 1-0